fUSD/lending_fUSD_20240222
["ID","MTS","AMOUNT","RATE_DAILY","PERIOD"]
[314843533,1708584664687,-500.0,0.0003589,2]
[314843534,1708584664696,-1538.17,0.0003589,2]
[314843535,1708584664706,-500.0,0.0003589,2]
[314843536,1708584664715,-505.08041081,0.0003589,2]
[314843537,1708584664725,-500.0,0.0003589,2]
[314843538,1708584664735,-1025.78,0.0003589,2]
[314843539,1708584664745,-500.0,0.0003589,2]
[314843540,1708584664754,-932.02,0.0003589,2]
[314843541,1708584664765,-500.0,0.0003589,2]
[314843542,1708584664774,-15197.8,0.0003589,2]
[314843543,1708584664784,-9346.32,0.0003589,2]
[314843544,1708584664793,-500.0,0.0003589,2]
[314843545,1708584664803,-500.0,0.0003589,2]
[314843546,1708584665128,-906.01,0.0003589,2]
[314843547,1708584665138,-721.98,0.0003589,2]
[314843548,1708584665148,-500.0,0.0003589,2]
[314843549,1708584665158,-8629.59,0.0003589,2]
[314843550,1708584665167,-500.0,0.0003589,2]
[314843551,1708584665177,-500.0,0.0003589,2]
[314843552,1708584665187,-500.0,0.0003589,2]
[314843553,1708584665197,-500.0,0.0003589,2]
[314843554,1708584665206,-500.0,0.0003589,2]
[314843555,1708584665216,-500.0,0.0003589,2]
[314843556,1708584665226,-14847.87,0.0003589,2]
[314843557,1708584665235,-500.0,0.0003589,2]
[314843558,1708584665246,-500.0,0.0003589,2]
[314843559,1708584665256,-5565.98,0.0003589,2]
[314843560,1708584665267,-10596.87,0.0003589,2]
[314843561,1708584665276,-500.0,0.0003589,2]
[314843562,1708584665286,-500.0,0.0003589,2]
[314843563,1708584665295,-951.89,0.0003589,2]
[314843564,1708584665304,-500.0,0.0003589,2]
[314843565,1708584665314,-500.0,0.0003589,2]
[314843566,1708584665323,-500.0,0.0003589,2]
[314843567,1708584665333,-500.0,0.0003589,2]
[314843568,1708584665342,-598.53,0.0003589,2]
[314843569,1708584665352,-500.0,0.0003589,2]
[314843570,1708584665362,-500.0,0.0003589,2]
[314843571,1708584665371,-1188.41,0.0003589,2]
[314843572,1708584665381,-500.0,0.0003589,2]
[314843573,1708584665390,-500.0,0.0003589,2]
[314843574,1708584665400,-1466.25,0.0003589,2]
[314843575,1708584665410,-527.29,0.0003589,2]
[314843576,1708584665419,-500.0,0.0003589,2]
[314843577,1708584665429,-519.91396627,0.0003589,2]
[314843578,1708584665439,-1068.67,0.0003589,2]
[314843579,1708584665449,-722.94,0.0003589,2]
[314843580,1708584665459,-500.0,0.0003589,2]
[314843581,1708584665469,-500.0,0.0003589,2]
[314843582,1708584665478,-775.8,0.0003589,2]
[314843583,1708584665488,-500.0,0.0003589,2]
[314843584,1708584665498,-712.83,0.0003589,2]
[314843585,1708584665508,-500.0,0.0003589,2]
[314843586,1708584665520,-500.0,0.0003589,2]
[314843587,1708584665530,-500.0,0.0003589,2]
[314843588,1708584665540,-8023.12,0.0003589,2]
[314843589,1708584665554,-500.0,0.0003589,2]
[314843590,1708584665564,-500.0,0.0003589,2]
[314843591,1708584665574,-901.42,0.0003589,2]
[314843592,1708584665585,-3428.45,0.0003589,2]
[314843593,1708584665597,-2108.01,0.0003589,2]
[314843594,1708584665606,-500.0,0.0003589,2]
[314843595,1708584665617,-5338.27,0.0003589,2]
[314843596,1708584665627,-500.0,0.0003589,2]
[314843597,1708584665638,-505.12346844,0.0003589,2]
[314843598,1708584665648,-1848.99,0.0003589,2]
[314843599,1708584665658,-529.12,0.0003589,2]
[314843600,1708584665667,-500.0,0.0003589,2]
[314843601,1708584665678,-500.0,0.0003589,2]
[314843602,1708584665688,-500.0,0.0003589,2]
[314843603,1708584665698,-500.0,0.0003589,2]
[314843604,1708584665708,-500.0,0.0003589,2]
[314843605,1708584665719,-3438.84,0.0003589,2]
[314843606,1708584665729,-500.0,0.0003589,2]
[314843607,1708584665740,-502.89295626,0.0003589,2]
[314843608,1708584665750,-1132.69,0.0003589,2]
[314843609,1708584665763,-500.0,0.0003589,2]
[314843610,1708584665773,-500.0,0.0003589,2]
[314843611,1708584665783,-500.0,0.0003589,2]
[314843612,1708584665793,-45774.17,0.0003589,2]
[314843613,1708584665803,-1242.09,0.0003589,2]
[314843614,1708584665813,-500.0,0.0003589,2]
[314843615,1708584665823,-500.0,0.0003589,2]
[314843616,1708584665832,-500.0,0.0003589,2]
[314843617,1708584665842,-1017.08,0.0003589,2]
[314843618,1708584665852,-514.77,0.0003589,2]
[314843619,1708584665861,-509.22,0.0003589,2]
[314843620,1708584665872,-500.0,0.0003589,2]
[314843621,1708584665881,-500.0,0.0003589,2]
[314843622,1708584665891,-2632.48,0.0003589,2]
[314843623,1708584665901,-4439.5,0.0003589,2]
[314843624,1708584665911,-664.74,0.0003589,2]
[314843625,1708584665920,-500.0,0.0003589,2]
[314843626,1708584665930,-500.0,0.0003589,2]
[314843627,1708584665940,-500.0,0.0003589,2]
[314843628,1708584665951,-575.32353001,0.0003589,2]
[314843629,1708584666623,-200.55646999,0.0003589,2]
[314843630,1708584666634,-500.0,0.0003589,2]
[314843631,1708584666645,-854.64466136,0.0003589,2]
[314843632,1708584666782,-210.15533864,0.0003589,2]
[314843633,1708584666793,-597.9,0.0003589,2]
[314843634,1708584666803,-500.0,0.0003589,2]
[314843635,1708584666814,-500.0,0.0003589,2]
[314843636,1708584666825,-1470.06,0.0003589,2]
[314843637,1708584666836,-2013.02,0.0003589,2]
[314843638,1708584666846,-658.96,0.0003589,2]
[314843639,1708584666859,-500.0,0.0003589,2]
[314843640,1708584666869,-500.0,0.0003589,2]
[314843641,1708584666883,-500.0,0.0003589,2]
[314843642,1708584666893,-343.44041136,0.0003589,2]
[314843643,1708584666917,-1338.50958864,0.0003589,2]
[314843644,1708584666938,-561.06,0.0003589,2]
[314843645,1708584666950,-500.0,0.0003589,2]
[314843646,1708584666969,-833.22,0.0003589,2]
[314843647,1708584666981,-7845.05,0.0003589,2]
[314843648,1708584667001,-500.0,0.0003589,2]
[314843649,1708584667011,-500.0,0.0003589,2]
[314843650,1708584667021,-500.0,0.0003589,2]
[314843651,1708584667034,-500.0,0.0003589,2]
[314843652,1708584667051,-830.09,0.0003589,2]
[314843653,1708584667061,-2633.2,0.0003589,2]
[314843654,1708584667071,-500.0,0.0003589,2]
[314843655,1708584667080,-500.0,0.0003589,2]
[314843656,1708584667090,-500.0,0.0003589,2]
[314843657,1708584667103,-500.0,0.0003589,2]
[314843658,1708584667112,-2904.58,0.0003589,2]
[314843659,1708584667122,-500.0,0.0003589,2]
[314843660,1708584667133,-500.0,0.0003589,2]
[314843661,1708584667142,-455.21863352,0.0003589,2]
[314843662,1708584667168,-332.56136648,0.0003589,2]
[314843663,1708584667178,-2741.56,0.0003589,2]
[314843664,1708584667188,-823.83,0.0003589,2]
[314843665,1708584667198,-1480.30556452,0.0003589,2]
[314843666,1708584667215,-387.00443548,0.0003589,2]
[314843667,1708584667225,-500.0,0.0003589,2]
[314843668,1708584667235,-788.03,0.0003589,2]
[314843669,1708584667245,-504.18868608,0.0003589,2]
[314843670,1708584667255,-1410.54,0.0003589,2]
[314843671,1708584667266,-1710.46,0.0003589,2]
[314843672,1708584667276,-500.0,0.0003589,2]
[314843673,1708584667286,-482.52,0.0003589,2]
[314843674,1708584667296,-722.89,0.0003589,2]
[314843675,1708584667306,-2226.79,0.0003589,2]
[314843676,1708584667316,-500.0,0.0003589,2]
[314843677,1708584667325,-527.71,0.0003589,2]
[314843678,1708584667335,-500.0,0.0003589,2]
[314843679,1708584667345,-1715.42,0.0003589,2]
[314843680,1708584667355,-2157.31,0.0003589,2]
[314843681,1708584667445,-2443.82,0.0003589,2]
[314843682,1708584667461,-500.0,0.0003589,2]
[314843683,1708584667477,-500.0,0.0003589,2]
[314843684,1708584667492,-721.24,0.0003589,2]
[314843685,1708584667505,-1122.55,0.0003589,2]
[314843686,1708584667515,-500.0,0.0003589,2]
[314843687,1708584667538,-500.0,0.0003589,2]
[314843688,1708584667560,-519.95,0.0003589,2]
[314843689,1708584667576,-1207.7,0.0003589,2]
[314843690,1708584667586,-500.0,0.0003589,2]
[314843691,1708584667595,-4176.38,0.0003589,2]
[314843692,1708584667606,-500.0,0.0003589,2]
[314843693,1708584667621,-1590.34,0.0003589,2]
[314843694,1708584667633,-500.0,0.0003589,2]
[314843695,1708584667670,-500.0,0.0003589,2]
[314843696,1708584667691,-500.0,0.0003589,2]
[314843697,1708584667702,-935.53,0.0003589,2]
[314843698,1708584667712,-500.0,0.0003589,2]
[314843699,1708584667723,-1379.69,0.0003589,2]
[314843700,1708584667733,-2932.01,0.0003589,2]
[314843701,1708584667744,-500.0,0.0003589,2]
[314843702,1708584667755,-13939.87,0.0003589,2]
[314843703,1708584667767,-510.76,0.0003589,2]
[314843704,1708584667777,-784.69,0.0003589,2]
[314843705,1708584667788,-500.0,0.0003589,2]
[314843706,1708584667799,-500.0,0.0003589,2]
[314843707,1708584667809,-500.0,0.0003589,2]
[314843708,1708584667819,-20532.05,0.0003589,2]
[314843709,1708584667830,-2648.75,0.0003589,2]
[314843710,1708584667840,-1393.95,0.0003589,2]
[314843711,1708584667850,-967.64,0.0003589,2]
[314843712,1708584667862,-500.0,0.0003589,2]
[314843713,1708584667872,-500.0,0.0003589,2]
[314843714,1708584667884,-3780.77,0.0003589,2]
[314843715,1708584667894,-500.0,0.0003589,2]
[314843716,1708584667904,-500.0,0.0003589,2]
[314843717,1708584667913,-500.0,0.0003589,2]
[314843718,1708584667923,-500.0,0.0003589,2]
[314843719,1708584667934,-13782.87,0.0003589,2]
[314843720,1708584667944,-500.0,0.0003589,2]
[314843721,1708584667953,-500.0,0.0003589,2]
[314843722,1708584667963,-629.09,0.0003589,2]
[314843723,1708584667972,-500.0,0.0003589,2]
[314843724,1708584667983,-519.48,0.0003589,2]
[314843725,1708584667994,-500.0,0.0003589,2]
[314843726,1708584668003,-1658.67,0.0003589,2]
[314843727,1708584668014,-3236.32,0.0003589,2]
[314843728,1708584668024,-791.64,0.0003589,2]
[314843729,1708584668033,-500.0,0.0003589,2]
[314843730,1708584668043,-501.8,0.0003589,2]
[314843731,1708584668053,-625.44,0.0003589,2]
[314843732,1708584668062,-1921.43,0.0003589,2]
[314843733,1708584668072,-500.0,0.0003589,2]
[314843734,1708584668082,-500.0,0.0003589,2]
[314843735,1708584668091,-3519.53,0.0003589,2]
[314843736,1708584668101,-500.0,0.0003589,2]
[314843737,1708584668111,-619.43,0.0003589,2]
[314843738,1708584668121,-759.33,0.0003589,2]
[314843739,1708584668130,-500.0,0.0003589,2]
[314843740,1708584668140,-1572.8,0.0003589,2]
[314843741,1708584668149,-509.43198571,0.0003589,2]
[314843742,1708584668159,-625.63,0.0003589,2]
[314843743,1708584668169,-500.0,0.0003589,2]
[314843744,1708584668180,-4437.56,0.0003589,2]
[314843745,1708584668190,-500.0,0.0003589,2]
[314843746,1708584668199,-500.0,0.0003589,2]
[314843747,1708584668208,-1624.47,0.0003589,2]
[314843748,1708584668218,-936.12,0.0003589,2]
[314843749,1708584668228,-2034.49,0.0003589,2]
[314843750,1708584668238,-500.0,0.0003589,2]
[314843751,1708584668248,-500.0,0.0003589,2]
[314843752,1708584668258,-378.3874371,0.0003589,2]
[314843753,1708584668270,-614.55,0.0003589,2]
[314843754,1708584668280,-500.0,0.0003589,2]
[314843755,1708584668291,-500.0,0.0003589,2]
[314843756,1708584668300,-805.05,0.0003589,2]
[314843757,1708584668310,-500.0,0.0003589,2]
[314843758,1708584668320,-500.0,0.0003589,2]
[314843759,1708584668330,-1254.67,0.0003589,2]
[314843760,1708584668340,-500.0,0.0003589,2]
[314843761,1708584668350,-1470.46,0.0003589,2]
[314843762,1708584668360,-1170.07,0.0003589,2]
[314843763,1708584668370,-500.0,0.0003589,2]
[314843764,1708584668380,-899.54,0.0003589,2]
[314843765,1708584668390,-681.73,0.0003589,2]
[314843766,1708584668399,-500.0,0.0003589,2]
[314843767,1708584668409,-500.0,0.0003589,2]
[314843768,1708584668419,-500.0,0.0003589,2]
[314843769,1708584668429,-505.53731286,0.0003589,2]
[314843770,1708584668438,-500.0,0.0003589,2]
[314843771,1708584668447,-1968.61,0.0003589,2]
[314843772,1708584668456,-626.5,0.0003589,2]
[314843773,1708584668465,-515.98216138,0.0003589,2]
[314843774,1708584668474,-500.0,0.0003589,2]
[314843775,1708584668484,-500.0,0.0003589,2]
[314843776,1708584668493,-939.84,0.0003589,2]
[314843777,1708584668502,-500.0,0.0003589,2]
[314843778,1708584668512,-500.0,0.0003589,2]
[314843779,1708584668521,-500.0,0.0003589,2]
[314843780,1708584668531,-1446.82,0.0003589,2]
[314843781,1708584668539,-1312.25,0.0003589,2]
[314843782,1708584668549,-1334.99,0.0003589,2]
[314843783,1708584668558,-9425.96,0.0003589,2]
[314843784,1708584668567,-5697.1,0.0003589,2]
[314843785,1708584668576,-500.0,0.0003589,2]
[314843786,1708584668587,-500.0,0.0003589,2]
[314843787,1708584668598,-1674.44,0.0003589,2]
[314843788,1708584668607,-500.0,0.0003589,2]
[314843789,1708584668616,-500.0,0.0003589,2]
[314843790,1708584668626,-500.0,0.0003589,2]
[314843791,1708584668635,-500.0,0.0003589,2]
[314843792,1708584668643,-500.0,0.0003589,2]
[314843793,1708584668653,-500.0,0.0003589,2]
[314843794,1708584668662,-1023.32190149,0.0003589,7]
[314843795,1708584668672,-615.42,0.0003589,2]
[314843796,1708584668681,-1559.15,0.0003589,2]
[314843797,1708584668690,-511.82483917,0.0003589,2]
[314843798,1708584668699,-500.0,0.0003589,2]
[314843799,1708584668711,-500.0,0.0003589,2]
[314843800,1708584668721,-500.0,0.0003589,2]
[314843801,1708584668730,-500.0,0.0003589,2]
[314843802,1708584668742,-1538.65,0.0003589,2]
[314843803,1708584668751,-3118.14,0.0003589,2]
[314843804,1708584668763,-500.0,0.0003589,2]
[314843805,1708584668773,-500.0,0.0003589,2]
[314843806,1708584668784,-3258.87,0.0003589,2]
[314843807,1708584668798,-506.8,0.0003589,2]
[314843808,1708584668808,-500.0,0.0003589,2]
[314843809,1708584668817,-879.2,0.0003589,2]
[314843810,1708584668826,-500.0,0.0003589,2]
[314843811,1708584668837,-500.0,0.0003589,2]
[314843812,1708584668846,-3215.17,0.0003589,2]
[314843813,1708584668855,-500.0,0.0003589,2]
[314843814,1708584668864,-608.38,0.0003589,2]
[314843815,1708584668874,-500.0,0.0003589,2]
[314843816,1708584668888,-500.0,0.0003589,2]
[314843817,1708584668898,-500.0,0.0003589,2]
[314843818,1708584668907,-3968.86,0.0003589,2]
[314843819,1708584668916,-500.0,0.0003589,2]
[314843820,1708584668925,-500.0,0.0003589,2]
[314843821,1708584668934,-9057.36,0.0003589,2]
[314843822,1708584668950,-797.47,0.0003589,2]
[314843823,1708584668959,-560.27972685,0.0003589,2]
[314843824,1708584668974,-935.41,0.0003589,2]
[314843825,1708584668990,-632.72132652,0.0003589,2]
[314843826,1708584669000,-933.56,0.0003589,2]
[314843827,1708584669009,-1440.14,0.0003589,2]
[314843828,1708584669020,-500.0,0.0003589,2]
[314843829,1708584669030,-3776.31,0.0003589,2]
[314843830,1708584669041,-660.0,0.0003589,2]
[314843831,1708584669050,-1114.34,0.0003589,2]
[314843832,1708584669060,-7002.48,0.0003589,2]
[314843833,1708584669069,-500.0,0.0003589,2]
[314843834,1708584669079,-500.0,0.0003589,2]
[314843835,1708584669090,-500.0,0.0003589,2]
[314843836,1708584669099,-500.0,0.0003589,2]
[314843837,1708584669109,-500.0,0.0003589,2]
[314843838,1708584669118,-500.0,0.0003589,2]
[314843839,1708584669128,-4253.13,0.0003589,2]
[314843840,1708584669137,-500.0,0.0003589,2]
[314843841,1708584669151,-500.0,0.0003589,2]
[314843842,1708584669160,-529.76,0.0003589,2]
[314843843,1708584669169,-3811.2,0.0003589,2]
[314843844,1708584669178,-1410.98,0.0003589,2]
[314843845,1708584669187,-500.0,0.0003589,2]
[314843846,1708584669196,-892.08,0.0003589,2]
[314843847,1708584669205,-500.0,0.0003589,2]
[314843848,1708584669214,-500.0,0.0003589,2]
[314843849,1708584669223,-500.0,0.0003589,2]
[314843850,1708584669233,-500.0,0.0003589,2]
[314843851,1708584669242,-500.0,0.0003589,2]
[314843852,1708584669251,-3178.92,0.0003589,2]
[314843853,1708584669262,-500.0,0.0003589,2]
[314843854,1708584669271,-4868.65,0.0003589,2]
[314843855,1708584669280,-897.79,0.0003589,2]
[314843856,1708584669290,-500.0,0.0003589,2]
[314843857,1708584669299,-503.93,0.0003589,2]
[314843858,1708584669315,-729.43,0.0003589,2]
[314843859,1708584669323,-1543.82,0.0003589,2]
[314843860,1708584669341,-1061.98,0.0003589,2]
[314843861,1708584669351,-1201.9,0.0003589,2]
[314843862,1708584669360,-500.0,0.0003589,2]
[314843863,1708584669370,-1521.07,0.0003589,2]
[314843864,1708584669379,-509.67202073,0.0003589,2]
[314843865,1708584669388,-500.0,0.0003589,2]
[314843866,1708584669398,-500.0,0.0003589,2]
[314843867,1708584669407,-653.38,0.0003589,2]
[314843868,1708584669416,-500.0,0.0003589,2]
[314843869,1708584669425,-500.0,0.0003589,2]
[314843870,1708584669434,-1902.77,0.0003589,2]
[314843871,1708584669444,-4614.22,0.0003589,2]
[314843872,1708584669453,-5112.02,0.0003589,2]
[314843873,1708584669463,-500.0,0.0003589,2]
[314843874,1708584669472,-500.0,0.0003589,2]
[314843875,1708584669482,-500.0,0.0003589,2]
[314843876,1708584669491,-500.0,0.0003589,2]
[314843877,1708584669501,-568.19,0.0003589,2]
[314843878,1708584669511,-500.0,0.0003589,2]
[314843879,1708584669523,-500.0,0.0003589,2]
[314843880,1708584669533,-500.0,0.0003589,2]
[314843881,1708584669543,-2402.15,0.0003589,2]
[314843882,1708584669556,-813.93,0.0003589,2]
[314843883,1708584669566,-1385.99,0.0003589,2]
[314843884,1708584669575,-19501.63,0.0003589,2]
[314843885,1708584669584,-500.0,0.0003589,2]
[314843886,1708584669594,-899.44,0.0003589,2]
[314843887,1708584669603,-1377.0,0.0003589,2]
[314843888,1708584669613,-603.06594808,0.0003589,2]
[314843889,1708584669622,-500.0,0.0003589,2]
[314843890,1708584669632,-1055.95,0.0003589,2]
[314843891,1708584669642,-500.0,0.0003589,2]
[314843892,1708584669656,-251.66,0.0003589,2]
[314843893,1708584669665,-500.0,0.0003589,2]
[314843894,1708584669675,-500.0,0.0003589,2]
[314843895,1708584669685,-500.0,0.0003589,2]
[314843896,1708584669696,-2771.75,0.0003589,2]
[314843897,1708584669706,-500.0,0.0003589,2]
[314843898,1708584669715,-500.0,0.0003589,2]
[314843899,1708584669725,-607.88,0.0003589,2]
[314843900,1708584669735,-5783.69,0.0003589,2]
[314843901,1708584669744,-500.0,0.0003589,2]
[314843902,1708584669753,-444.52,0.0003589,2]
[314843903,1708584669763,-31198.26350608,0.0003589,2]
[314843904,1708584669773,-168.59280544,0.0003589,2]
[314843905,1708584669782,-150.79616061,0.00035915,2]
[314843906,1708584669791,-2530.07388994,0.0003593,2]
[314843907,1708584669801,-150.0,0.00035934,2]
[314843908,1708584669810,-300.0,0.00035951,2]
[314843909,1708584669819,-194.66643057,0.00035955,2]
[314843910,1708584669828,-177.69,0.00035962,2]
[314843911,1708584669838,-150.0,0.00035964,2]
[314843912,1708584669847,-151.58842651,0.00035967,2]
[314843913,1708584669856,-150.0,0.0003598,2]
[314843914,1708584669865,-150.0,0.00035984,2]
[314843915,1708584669874,-150.0,0.00035993,2]
[314843916,1708584669884,-500.0,0.00035993,2]
[314843917,1708584669894,-500.0,0.00035993,2]
[314843918,1708584669904,-500.0,0.00035993,2]
[314843919,1708584669913,-500.0,0.00035993,2]
[314843920,1708584669923,-500.0,0.00035993,2]
[314843921,1708584669932,-500.0,0.00035993,2]
[314843922,1708584669942,-500.0,0.00035993,2]
[314843923,1708584669952,-500.0,0.00035993,2]
[314843924,1708584669961,-500.0,0.00035993,2]
[314843925,1708584669971,-500.0,0.00035993,2]
[314843926,1708584669981,-500.0,0.00035993,2]
[314843927,1708584669992,-500.0,0.00035993,2]
[314843928,1708584670002,-500.0,0.00035993,2]
[314843929,1708584670011,-500.0,0.00035993,2]
[314843930,1708584670021,-500.0,0.00035993,2]
[314843931,1708584670030,-500.0,0.00035993,2]
[314843932,1708584670039,-500.0,0.00035993,2]
[314843933,1708584670049,-500.0,0.00035993,2]
[314843934,1708584670058,-500.0,0.00035993,2]
[314843935,1708584670067,-500.0,0.00035993,2]
[314843936,1708584670076,-500.0,0.00035993,2]
[314843937,1708584670085,-500.0,0.00035993,2]
[314843938,1708584670095,-500.0,0.00035993,2]
[314843939,1708584670104,-500.0,0.00035993,2]
[314843940,1708584670114,-500.0,0.00035993,2]
[314843941,1708584670122,-500.0,0.00035993,2]
[314843942,1708584670131,-500.0,0.00035993,2]
[314843943,1708584670141,-500.0,0.00035993,2]
[314843944,1708584670150,-500.0,0.00035993,2]
[314843945,1708584670159,-500.0,0.00035993,2]
[314843946,1708584670168,-500.0,0.00035993,2]
[314843947,1708584670177,-500.0,0.00035993,2]
[314843948,1708584670186,-500.0,0.00035993,2]
[314843949,1708584670195,-500.0,0.00035993,2]
[314843950,1708584670203,-500.0,0.00035993,2]
[314843951,1708584670212,-500.0,0.00035993,2]
[314843952,1708584670221,-500.0,0.00035993,2]
[314843953,1708584670230,-500.0,0.00035993,2]
[314843954,1708584670240,-500.0,0.00035993,2]
[314843955,1708584670249,-500.0,0.00035993,2]
[314843956,1708584670258,-500.0,0.00035993,2]
[314843957,1708584670269,-500.0,0.00035993,2]
[314843958,1708584670278,-500.0,0.00035993,2]
[314843959,1708584670287,-500.0,0.00035993,2]
[314843960,1708584670297,-500.0,0.00035993,2]
[314843961,1708584670306,-500.0,0.00035993,2]
[314843962,1708584670315,-500.0,0.00035993,2]
[314843963,1708584670325,-500.0,0.00035993,2]
[314843964,1708584670334,-500.0,0.00035993,2]
[314843965,1708584670344,-500.0,0.00035993,2]
[314843966,1708584670354,-500.0,0.00035993,2]
[314843967,1708584670364,-500.0,0.00035993,2]
[314843968,1708584670373,-500.0,0.00035993,2]
[314843969,1708584670383,-500.0,0.00035993,2]
[314843970,1708584670393,-500.0,0.00035993,2]
[314843971,1708584670403,-500.0,0.00035993,2]
[314843972,1708584670413,-500.0,0.00035993,2]
[314843973,1708584670421,-500.0,0.00035993,2]
[314843974,1708584670432,-500.0,0.00035993,2]
[314843975,1708584670441,-500.0,0.00035993,2]
[314843976,1708584670451,-500.0,0.00035993,2]
[314843977,1708584670460,-500.0,0.00035993,2]
[314843978,1708584670469,-500.0,0.00035993,2]
[314843979,1708584670477,-500.0,0.00035993,2]
[314843980,1708584670487,-500.0,0.00035993,2]
[314843981,1708584670497,-500.0,0.00035993,2]
[314843982,1708584670506,-500.0,0.00035993,2]
[314843983,1708584670519,-500.0,0.00035993,2]
[314843984,1708584670528,-500.0,0.00035993,2]
[314843985,1708584670538,-500.0,0.00035993,2]
[314843986,1708584670549,-500.0,0.00035993,2]
[314843987,1708584670558,-500.0,0.00035993,2]
[314843988,1708584670568,-500.0,0.00035993,2]
[314843989,1708584670577,-500.0,0.00035993,2]
[314843990,1708584670587,-500.0,0.00035993,2]
[314843991,1708584670597,-500.0,0.00035993,2]
[314843992,1708584670607,-500.0,0.00035993,2]
[314843993,1708584670617,-500.0,0.00035993,2]
[314843994,1708584670626,-500.0,0.00035993,2]
[314843995,1708584670635,-500.0,0.00035993,2]
[314843996,1708584670644,-500.0,0.00035993,2]
[314843997,1708584670653,-500.0,0.00035993,2]
[314843998,1708584670662,-500.0,0.00035993,2]
[314843999,1708584670674,-500.0,0.00035993,2]
[314844000,1708584670683,-500.0,0.00035993,2]
[314844001,1708584670692,-500.0,0.00035993,2]
[314844002,1708584670702,-500.0,0.00035993,2]
[314844003,1708584670711,-500.0,0.00035993,2]
[314844004,1708584670721,-500.0,0.00035993,2]
[314844005,1708584670730,-500.0,0.00035993,2]
[314844006,1708584670740,-500.0,0.00035993,2]
[314844007,1708584670749,-500.0,0.00035993,2]
[314844008,1708584670759,-500.0,0.00035993,2]
[314844009,1708584670771,-500.0,0.00035993,2]
[314844010,1708584670780,-500.0,0.00035993,2]
[314844011,1708584670788,-500.0,0.00035993,2]
[314844012,1708584670797,-500.0,0.00035993,2]
[314844013,1708584670807,-500.0,0.00035993,2]
[314844014,1708584670817,-500.0,0.00035993,2]
[314844015,1708584670827,-500.0,0.00035993,2]
[314844016,1708584670836,-500.0,0.00035993,2]
[314844017,1708584670846,-500.0,0.00035993,2]
[314844018,1708584670856,-500.0,0.00035993,2]
[314844019,1708584670866,-500.0,0.00035993,2]
[314844020,1708584670875,-500.0,0.00035993,2]
[314844021,1708584670885,-500.0,0.00035993,2]
[314844022,1708584670895,-500.0,0.00035993,2]
[314844023,1708584670904,-500.0,0.00035993,2]
[314844024,1708584670914,-500.0,0.00035993,2]
[314844025,1708584670923,-500.0,0.00035993,2]
[314844026,1708584670933,-500.0,0.00035993,2]
[314844027,1708584670943,-500.0,0.00035993,2]
[314844028,1708584670953,-500.0,0.00035993,2]
[314844029,1708584670963,-500.0,0.00035993,2]
[314844030,1708584670972,-500.0,0.00035993,2]
[314844031,1708584670982,-500.0,0.00035993,2]
[314844032,1708584670991,-500.0,0.00035993,2]